[Event "Titled Tuesday Blitz July 20 2021"]
[White "Yuan, Qingyu"]
[Black "Iskusnyh, Sergei"]
[WhiteFideId "8609772"]
[BlackFideId "4120027"]
[WhiteElo "2359"]
[BlackElo "2492"]
[Result "0-1"]
[Round "05"]
[TimeControl "180+1"]
[Date "2021.07.21"]
[WhiteClock "0:00:15"]
[BlackClock "0:00:21"]

1. e4 {[%clk 0:03:00]}  e6 {[%clk 0:02:59]} 2. d4 {[%clk 0:03:00]}  d5 {[%clk 0:02:59]} 3. Nd2 {[%clk 0:03:01]}  c5 {[%clk 0:02:59]} 4. Ngf3 {[%clk 0:03:01]}  Nc6 {[%clk 0:02:56]} 5. exd5 {[%clk 0:03:01]}  exd5 {[%clk 0:02:56]} 6. Bb5 {[%clk 0:03:01]}  cxd4 {[%clk 0:02:56]} 7. O-O {[%clk 0:02:59]}  Bd6 {[%clk 0:02:56]} 8. Nxd4 {[%clk 0:02:53]}  Ne7 {[%clk 0:02:56]} 9. N2f3 {[%clk 0:02:43]}  O-O {[%clk 0:02:54]} 10. h3 {[%clk 0:02:44]}  Nxd4 {[%clk 0:02:41]} 11. Qxd4 {[%clk 0:02:33]}  Bf5 {[%clk 0:02:25]} 12. Bd3 {[%clk 0:02:30]}  Nc6 {[%clk 0:02:18]} 13. Qc3 {[%clk 0:02:21]}  Be4 {[%clk 0:02:09]} 14. Bxe4 {[%clk 0:01:54]}  dxe4 {[%clk 0:02:08]} 15. Ng5 {[%clk 0:01:55]}  Qe7 {[%clk 0:01:46]} 16. Qc4 {[%clk 0:01:55]}  Rae8 {[%clk 0:01:21]} 17. Re1 {[%clk 0:01:54]}  Qe5 {[%clk 0:01:15]} 18. g3 {[%clk 0:01:55]}  Qf5 {[%clk 0:01:06]} 19. Rxe4 {[%clk 0:01:16]}  h6 {[%clk 0:01:05]} 20. g4 {[%clk 0:01:03]}  Qg6 {[%clk 0:00:32]} 21. Rxe8 {[%clk 0:00:59]}  Rxe8 {[%clk 0:00:33]} 22. Nf3 {[%clk 0:00:58]}  Re4 {[%clk 0:00:28]} 23. Qd3 {[%clk 0:00:43]}  Ne5 {[%clk 0:00:28]} 24. Nxe5 {[%clk 0:00:38]}  Re1+ {[%clk 0:00:28]} 25. Kg2 {[%clk 0:00:34]}  Bxe5 {[%clk 0:00:29]} 26. Qxg6 {[%clk 0:00:19]}  fxg6 {[%clk 0:00:29]} 27. Kf3 {[%clk 0:00:15]}  Kf7 {[%clk 0:00:28]} 28. a4 {[%clk 0:00:13]}  g5 {[%clk 0:00:28]} 29. c3 {[%clk 0:00:06]}  Bf4 {[%clk 0:00:28]} 30. Bxf4 {[%clk 0:00:06]}  Rxa1 {[%clk 0:00:28]} 31. Be3 {[%clk 0:00:07]}  Rxa4 {[%clk 0:00:28]} 32. Bd4 {[%clk 0:00:07]}  a6 {[%clk 0:00:28]} 33. b4 {[%clk 0:00:07]}  Ra2 {[%clk 0:00:25]} 34. Ke4 {[%clk 0:00:07]}  g6 {[%clk 0:00:24]} 35. Kd5 {[%clk 0:00:07]}  Re2 {[%clk 0:00:22]} 36. Kd6 {[%clk 0:00:07]}  Re6+ {[%clk 0:00:22]} 37. Kc7 {[%clk 0:00:07]}  b5 {[%clk 0:00:22]} 38. Kb7 {[%clk 0:00:07]}  Ke7 {[%clk 0:00:19]} 39. Bb6 {[%clk 0:00:05]}  Kd7 {[%clk 0:00:20]} 40. Kxa6 {[%clk 0:00:04]}  Kc6 {[%clk 0:00:20]} 41. Bd4 {[%clk 0:00:04]}  Re2 {[%clk 0:00:19]} 42. Ka7 {[%clk 0:00:04]}  Re1 {[%clk 0:00:19]} 43. Kb8 {[%clk 0:00:04]}  Rh1 {[%clk 0:00:20]} 44. Kc8 {[%clk 0:00:03]}  Rxh3 {[%clk 0:00:19]} 45. Kd8 {[%clk 0:00:04]}  Rh4 {[%clk 0:00:19]} 46. Ke7 {[%clk 0:00:05]}  Rxg4 {[%clk 0:00:19]} 47. Kf6 {[%clk 0:00:05]}  h5 {[%clk 0:00:20]} 48. Kxg6 {[%clk 0:00:05]}  h4 {[%clk 0:00:20]} 49. Kf5 {[%clk 0:00:06]}  Rxd4 {[%clk 0:00:20]} 50. cxd4 {[%clk 0:00:06]}  h3 {[%clk 0:00:20]} 51. Ke6 {[%clk 0:00:06]}  h2 {[%clk 0:00:21]} 52. d5+ {[%clk 0:00:07]}  Kb7 {[%clk 0:00:20]} 53. d6 {[%clk 0:00:07]}  h1=Q {[%clk 0:00:20]} 54. d7 {[%clk 0:00:08]}  Qe4+ {[%clk 0:00:21]} 55. Kd6 {[%clk 0:00:08]}  Qd4+ {[%clk 0:00:21]} 56. Ke7 {[%clk 0:00:08]}  Kc7 {[%clk 0:00:21]} 57. d8=Q+ {[%clk 0:00:08]}  Qxd8+ {[%clk 0:00:22]} 58. Ke6 {[%clk 0:00:08]}  Qd4 {[%clk 0:00:21]} 59. Kf5 {[%clk 0:00:09]}  Qxf2+ {[%clk 0:00:22]} 60. Kg6 {[%clk 0:00:10]}  Kd6 {[%clk 0:00:22]} 61. Kh5 {[%clk 0:00:10]}  Qf4 {[%clk 0:00:20]} 62. Kg6 {[%clk 0:00:11]}  g4 {[%clk 0:00:20]} 63. Kh5 {[%clk 0:00:12]}  g3 {[%clk 0:00:21]} 64. Kg6 {[%clk 0:00:13]}  g2 {[%clk 0:00:21]} 65. Kh5 {[%clk 0:00:14]}  Ke6 {[%clk 0:00:21]} 66. Kg6 {[%clk 0:00:14]}  g1=Q+ {[%clk 0:00:21]} 67. Kh5 {[%clk 0:00:15]}  Qfh2# {[%clk 0:00:21]} 0-1


[Site "https://www.chess.com"]

[Event "Titled Tuesday Blitz July 20 2021"]
[White "Zia, Tahsin Tajwar"]
[Black "Ovchinnikov, Vsevolod"]
[WhiteFideId "10211888"]
[BlackFideId "24176842"]
[WhiteElo "1800"]
[BlackElo "2376"]
[Result "0-1"]
[Round "05"]
[TimeControl "180+1"]
[Date "2021.07.21"]
[WhiteClock "0:00:10"]
[BlackClock "0:00:15"]

1. d4 {[%clk 0:03:00]}  Nf6 {[%clk 0:02:59]} 2. Bf4 {[%clk 0:02:58]}  g6 {[%clk 0:03:00]} 3. Nc3 {[%clk 0:02:56]}  d5 {[%clk 0:02:59]} 4. e3 {[%clk 0:02:56]}  Bg7 {[%clk 0:02:56]} 5. h4 {[%clk 0:02:55]}  c6 {[%clk 0:02:56]} 6. Be2 {[%clk 0:02:52]}  h6 {[%clk 0:02:48]} 7. Nf3 {[%clk 0:02:48]}  Bg4 {[%clk 0:02:48]} 8. Qd2 {[%clk 0:02:44]}  Nbd7 {[%clk 0:02:46]} 9. O-O-O {[%clk 0:02:39]}  Nh5 {[%clk 0:02:40]} 10. Ne5 {[%clk 0:02:33]}  Bxe2 {[%clk 0:02:36]} 11. Qxe2 {[%clk 0:02:31]}  Nxf4 {[%clk 0:02:12]} 12. exf4 {[%clk 0:02:29]}  Nxe5 {[%clk 0:02:13]} 13. fxe5 {[%clk 0:02:21]}  e6 {[%clk 0:02:13]} 14. f4 {[%clk 0:02:17]}  h5 {[%clk 0:02:13]} 15. Na4 {[%clk 0:02:09]}  Qa5 {[%clk 0:02:05]} 16. b3 {[%clk 0:02:03]}  O-O-O {[%clk 0:02:04]} 17. Kb2 {[%clk 0:01:57]}  Bf8 {[%clk 0:02:02]} 18. Qd2 {[%clk 0:01:51]}  Qxd2 {[%clk 0:01:49]} 19. Rxd2 {[%clk 0:01:52]}  b6 {[%clk 0:01:44]} 20. c3 {[%clk 0:01:37]}  Kb7 {[%clk 0:01:44]} 21. b4 {[%clk 0:01:34]}  Ra8 {[%clk 0:01:40]} 22. a3 {[%clk 0:01:27]}  a5 {[%clk 0:01:39]} 23. Kb3 {[%clk 0:01:27]}  axb4 {[%clk 0:01:35]} 24. cxb4 {[%clk 0:01:24]}  Be7 {[%clk 0:01:34]} 25. g3 {[%clk 0:01:14]}  Ra6 {[%clk 0:01:34]} 26. Nb2 {[%clk 0:01:12]}  Rha8 {[%clk 0:01:30]} 27. a4 {[%clk 0:01:12]}  c5 {[%clk 0:01:24]} 28. dxc5 {[%clk 0:00:56]}  bxc5 {[%clk 0:01:24]} 29. b5 {[%clk 0:00:56]}  c4+ {[%clk 0:01:08]} 30. Nxc4 {[%clk 0:00:56]}  dxc4+ {[%clk 0:01:05]} 31. Kc3 {[%clk 0:00:56]}  R6a7 {[%clk 0:00:57]} 32. Rd7+ {[%clk 0:00:56]}  Kb6 {[%clk 0:00:56]} 33. Rhd1 {[%clk 0:00:56]}  Bc5 {[%clk 0:00:38]} 34. Rxa7 {[%clk 0:00:46]}  Rxa7 {[%clk 0:00:39]} 35. Rd8 {[%clk 0:00:41]}  Rxa4 {[%clk 0:00:31]} 36. Rb8+ {[%clk 0:00:40]}  Ka5 {[%clk 0:00:23]} 37. Rb7 {[%clk 0:00:27]}  Bf2 {[%clk 0:00:21]} 38. Rxf7 {[%clk 0:00:22]}  Kxb5 {[%clk 0:00:21]} 39. Re7 {[%clk 0:00:14]}  Ra3+ {[%clk 0:00:20]} 40. Kc2 {[%clk 0:00:13]}  Rxg3 {[%clk 0:00:18]} 41. Rxe6 {[%clk 0:00:13]}  Bd4 {[%clk 0:00:16]} 42. Rd6 {[%clk 0:00:12]}  Rg2+ {[%clk 0:00:17]} 43. Kc1 {[%clk 0:00:12]}  Be3+ {[%clk 0:00:16]} 44. Kd1 {[%clk 0:00:12]}  Bxf4 {[%clk 0:00:17]} 45. Rd5+ {[%clk 0:00:10]}  Kc6 {[%clk 0:00:17]} 46. Rd8 {[%clk 0:00:10]}  Bxe5 {[%clk 0:00:16]} 47. Re8 {[%clk 0:00:10]}  Bf4 {[%clk 0:00:16]} 48. Re2 {[%clk 0:00:10]}  Rxe2 {[%clk 0:00:15]} 0-1


[Site "https://www.chess.com"]

[Event "Titled Tuesday Blitz July 20 2021"]
[White "Al-Tarboush, Ward"]
[Black "Semenova, Elena"]
[WhiteFideId "7601450"]
[BlackFideId "24125148"]
[WhiteElo "2319"]
[BlackElo "2075"]
[Result "1-0"]
[Round "06"]
[TimeControl "180+1"]
[Date "2021.07.21"]
[WhiteClock "0:02:23"]
[BlackClock "0:00:47"]

1. e4 {[%clk 0:03:00]}  e5 {[%clk 0:03:00]} 2. Nf3 {[%clk 0:03:01]}  Nf6 {[%clk 0:03:00]} 3. Nxe5 {[%clk 0:02:59]}  d6 {[%clk 0:02:58]} 4. Nf3 {[%clk 0:03:00]}  Nxe4 {[%clk 0:02:59]} 5. Nc3 {[%clk 0:03:01]}  Nxc3 {[%clk 0:02:59]} 6. dxc3 {[%clk 0:03:01]}  Be7 {[%clk 0:02:59]} 7. Bd3 {[%clk 0:03:02]}  Nc6 {[%clk 0:02:59]} 8. Bf4 {[%clk 0:03:03]}  Be6 {[%clk 0:03:00]} 9. Qd2 {[%clk 0:03:03]}  Qd7 {[%clk 0:03:01]} 10. Bb5 {[%clk 0:02:56]}  a6 {[%clk 0:03:00]} 11. Ba4 {[%clk 0:02:56]}  b5 {[%clk 0:03:01]} 12. Bb3 {[%clk 0:02:56]}  O-O {[%clk 0:03:01]} 13. h4 {[%clk 0:02:53]}  Rfe8 {[%clk 0:03:00]} 14. h5 {[%clk 0:02:52]}  a5 {[%clk 0:02:56]} 15. O-O-O {[%clk 0:02:52]}  a4 {[%clk 0:02:56]} 16. Bxe6 {[%clk 0:02:52]}  Qxe6 {[%clk 0:02:57]} 17. Kb1 {[%clk 0:02:51]}  Ne5 {[%clk 0:02:54]} 18. Nd4 {[%clk 0:02:51]}  Qf6 {[%clk 0:02:49]} 19. h6 {[%clk 0:02:48]}  Nc4 {[%clk 0:02:43]} 20. Qc1 {[%clk 0:02:48]}  a3 {[%clk 0:02:36]} 21. b3 {[%clk 0:02:48]}  Nb2 {[%clk 0:02:30]} 22. Rde1 {[%clk 0:02:47]}  c5 {[%clk 0:02:23]} 23. Nxb5 {[%clk 0:02:46]}  Reb8 {[%clk 0:01:36]} 24. Nc7 {[%clk 0:02:40]}  Na4 {[%clk 0:01:20]} 25. Bd2 {[%clk 0:02:31]}  Bf8 {[%clk 0:00:58]} 26. hxg7 {[%clk 0:02:27]}  Bxg7 {[%clk 0:00:56]} 27. Nd5 {[%clk 0:02:24]}  Qg6 {[%clk 0:00:47]} 28. Ne7+ {[%clk 0:02:23]} 1-0


[Site "https://www.chess.com"]

[Event "Titled Tuesday Blitz July 20 2021"]
[White "Aradhya, Garg"]
[Black "McDonald, Mike"]
[WhiteFideId "25006746"]
[BlackFideId "2635682"]
[WhiteElo "2146"]
[BlackElo "2497"]
[Result "1-0"]
[Round "06"]
[TimeControl "180+1"]
[Date "2021.07.21"]
[WhiteClock "0:00:21"]
[BlackClock "0:00:12"]

1. d4 {[%clk 0:03:00]}  Nf6 {[%clk 0:02:58]} 2. c4 {[%clk 0:03:01]}  g6 {[%clk 0:02:59]} 3. g3 {[%clk 0:03:01]}  Bg7 {[%clk 0:02:59]} 4. Bg2 {[%clk 0:03:01]}  O-O {[%clk 0:03:00]} 5. Nc3 {[%clk 0:03:02]}  d6 {[%clk 0:03:00]} 6. Nf3 {[%clk 0:03:02]}  c5 {[%clk 0:03:01]} 7. O-O {[%clk 0:03:01]}  Nc6 {[%clk 0:03:01]} 8. dxc5 {[%clk 0:02:58]}  dxc5 {[%clk 0:03:02]} 9. Be3 {[%clk 0:02:58]}  Qa5 {[%clk 0:03:01]} 10. Qb3 {[%clk 0:02:44]}  Ng4 {[%clk 0:02:52]} 11. Bd2 {[%clk 0:02:44]}  Nd4 {[%clk 0:02:38]} 12. Nxd4 {[%clk 0:02:41]}  cxd4 {[%clk 0:02:39]} 13. Ne4 {[%clk 0:02:38]}  Qc7 {[%clk 0:02:39]} 14. Rac1 {[%clk 0:02:28]}  h6 {[%clk 0:02:27]} 15. h3 {[%clk 0:02:20]}  Ne5 {[%clk 0:02:25]} 16. f4 {[%clk 0:02:01]}  Nc6 {[%clk 0:02:25]} 17. Nf2 {[%clk 0:01:57]}  e5 {[%clk 0:02:03]} 18. Nd3 {[%clk 0:01:54]}  Re8 {[%clk 0:01:51]} 19. fxe5 {[%clk 0:01:51]}  Nxe5 {[%clk 0:01:51]} 20. Bf4 {[%clk 0:01:51]}  Qe7 {[%clk 0:01:44]} 21. Nxe5 {[%clk 0:01:28]}  Bxe5 {[%clk 0:01:44]} 22. Bxh6 {[%clk 0:01:28]}  Bg7 {[%clk 0:01:12]} 23. Bxg7 {[%clk 0:01:26]}  Kxg7 {[%clk 0:01:13]} 24. Qd3 {[%clk 0:01:25]}  Qe3+ {[%clk 0:01:05]} 25. Qxe3 {[%clk 0:01:13]}  Rxe3 {[%clk 0:01:05]} 26. Kf2 {[%clk 0:01:14]}  Be6 {[%clk 0:00:59]} 27. Rfd1 {[%clk 0:01:14]}  Rd8 {[%clk 0:00:49]} 28. Bxb7 {[%clk 0:00:59]}  Rb8 {[%clk 0:00:35]} 29. Rxd4 {[%clk 0:00:54]}  Re5 {[%clk 0:00:34]} 30. Bf3 {[%clk 0:00:47]}  Rxb2 {[%clk 0:00:31]} 31. h4 {[%clk 0:00:33]}  Rc5 {[%clk 0:00:30]} 32. a3 {[%clk 0:00:20]}  Rb3 {[%clk 0:00:25]} 33. Bd5 {[%clk 0:00:20]}  Bxd5 {[%clk 0:00:21]} 34. Rxd5 {[%clk 0:00:20]}  Rxd5 {[%clk 0:00:17]} 35. cxd5 {[%clk 0:00:21]}  Rxa3 {[%clk 0:00:18]} 36. d6 {[%clk 0:00:21]}  Kf8 {[%clk 0:00:14]} 37. Rc8+ {[%clk 0:00:20]}  Kg7 {[%clk 0:00:14]} 38. d7 {[%clk 0:00:21]}  a5 {[%clk 0:00:11]} 39. d8=Q {[%clk 0:00:21]}  g5 {[%clk 0:00:11]} 40. Qf8+ {[%clk 0:00:21]}  Kh7 {[%clk 0:00:12]} 41. Qxf7+ {[%clk 0:00:21]}  Kh6 {[%clk 0:00:12]} 42. Rh8# {[%clk 0:00:21]} 1-0


[Site "https://www.chess.com"]

[Event "Titled Tuesday Blitz July 20 2021"]
[White "Begunov, Konstantin"]
[Black "Vasli, Aref"]
[WhiteFideId "4118510"]
[BlackFideId "417521"]
[WhiteElo "2262"]
[BlackElo "2257"]
[Result "1/2-1/2"]
[Round "06"]
[TimeControl "180+1"]
[Date "2021.07.21"]
[WhiteClock "0:00:11"]
[BlackClock "0:00:28"]

1. d4 {[%clk 0:02:52]}  Nf6 {[%clk 0:02:55]} 2. c4 {[%clk 0:02:52]}  e6 {[%clk 0:02:52]} 3. Nf3 {[%clk 0:02:51]}  d5 {[%clk 0:02:52]} 4. Nc3 {[%clk 0:02:51]}  c5 {[%clk 0:02:52]} 5. cxd5 {[%clk 0:02:51]}  exd5 {[%clk 0:02:52]} 6. g3 {[%clk 0:02:51]}  Nc6 {[%clk 0:02:52]} 7. Bg2 {[%clk 0:02:50]}  Be7 {[%clk 0:02:52]} 8. O-O {[%clk 0:02:51]}  O-O {[%clk 0:02:51]} 9. Bg5 {[%clk 0:02:48]}  Be6 {[%clk 0:02:50]} 10. dxc5 {[%clk 0:02:40]}  Bxc5 {[%clk 0:02:45]} 11. Bxf6 {[%clk 0:02:39]}  Qxf6 {[%clk 0:02:45]} 12. Nxd5 {[%clk 0:02:39]}  Qxb2 {[%clk 0:02:45]} 13. Nc7 {[%clk 0:02:31]}  Rad8 {[%clk 0:02:41]} 14. Qc1 {[%clk 0:02:28]}  Qxc1 {[%clk 0:02:25]} 15. Rfxc1 {[%clk 0:02:27]}  Bb6 {[%clk 0:02:26]} 16. Nxe6 {[%clk 0:02:25]}  fxe6 {[%clk 0:02:26]} 17. e3 {[%clk 0:02:10]}  Rd6 {[%clk 0:02:23]} 18. Ng5 {[%clk 0:02:04]}  Rd2 {[%clk 0:01:37]} 19. Bxc6 {[%clk 0:01:59]}  bxc6 {[%clk 0:01:08]} 20. Ne4 {[%clk 0:01:59]}  Rb2 {[%clk 0:01:04]} 21. Rxc6 {[%clk 0:01:56]}  h6 {[%clk 0:01:01]} 22. Rxe6 {[%clk 0:01:45]}  Rc8 {[%clk 0:00:59]} 23. a4 {[%clk 0:01:38]}  Ba5 {[%clk 0:00:55]} 24. Ra6 {[%clk 0:01:31]}  Bb6 {[%clk 0:00:33]} 25. a5 {[%clk 0:01:30]}  Bxe3 {[%clk 0:00:33]} 26. fxe3 {[%clk 0:00:20]}  Rcc2 {[%clk 0:00:32]} 27. h4 {[%clk 0:00:15]}  Rg2+ {[%clk 0:00:31]} 28. Kf1 {[%clk 0:00:15]}  Rh2 {[%clk 0:00:32]} 29. Kg1 {[%clk 0:00:12]}  Rbg2+ {[%clk 0:00:31]} 30. Kf1 {[%clk 0:00:12]}  Rb2 {[%clk 0:00:31]} 31. Kg1 {[%clk 0:00:11]}  Rbg2+ {[%clk 0:00:28]} 32. Kf1 {[%clk 0:00:11]}  Rb2 {[%clk 0:00:28]} 1/2-1/2


[Site "https://www.chess.com"]

[Event "Titled Tuesday Blitz July 20 2021"]
[White "Boidiya, Sidi"]
[Black "Leiva, Gianmarco"]
[WhiteFideId "19600100"]
[BlackFideId "3804399"]
[WhiteElo "2113"]
[BlackElo "2365"]
[Result "1/2-1/2"]
[Round "06"]
[TimeControl "180+1"]
[Date "2021.07.21"]
[WhiteClock "0:02:39"]
[BlackClock "0:02:09"]

1. e4 {[%clk 0:03:00]}  c5 {[%clk 0:02:56]} 2. Nc3 {[%clk 0:03:00]}  d6 {[%clk 0:02:56]} 3. g3 {[%clk 0:03:00]}  g6 {[%clk 0:02:55]} 4. Bg2 {[%clk 0:03:00]}  Bg7 {[%clk 0:02:56]} 5. d3 {[%clk 0:02:59]}  Nc6 {[%clk 0:02:56]} 6. Nge2 {[%clk 0:02:58]}  e6 {[%clk 0:02:32]} 7. Be3 {[%clk 0:02:55]}  Nd4 {[%clk 0:02:31]} 8. Qd2 {[%clk 0:02:50]}  h5 {[%clk 0:02:29]} 9. h3 {[%clk 0:02:50]}  Ne7 {[%clk 0:02:21]} 10. O-O {[%clk 0:02:46]}  Rb8 {[%clk 0:02:14]} 11. a4 {[%clk 0:02:44]}  b6 {[%clk 0:02:11]} 12. Kh2 {[%clk 0:02:42]}  Bb7 {[%clk 0:02:10]} 13. f4 {[%clk 0:02:39]}  f5 {[%clk 0:02:09]} 1/2-1/2


[Site "https://www.chess.com"]

[Event "Titled Tuesday Blitz July 20 2021"]
[White "Buchenau, Frank"]
[Black "Derige Kane, Yan"]
[WhiteFideId "4604350"]
[BlackFideId "20665431"]
[WhiteElo "2255"]
[BlackElo "2169"]
[Result "1-0"]
[Round "06"]
[TimeControl "180+1"]
[Date "2021.07.21"]
[WhiteClock "0:01:13"]
[BlackClock "0:01:27"]

1. e4 {[%clk 0:03:00]}  c5 {[%clk 0:02:59]} 2. Nf3 {[%clk 0:03:00]}  Nc6 {[%clk 0:03:00]} 3. Bb5 {[%clk 0:02:59]}  e6 {[%clk 0:03:00]} 4. Bxc6 {[%clk 0:02:59]}  bxc6 {[%clk 0:03:01]} 5. d3 {[%clk 0:02:58]}  Ne7 {[%clk 0:02:59]} 6. Qe2 {[%clk 0:02:58]}  Ng6 {[%clk 0:02:59]} 7. h4 {[%clk 0:02:57]}  h5 {[%clk 0:02:59]} 8. e5 {[%clk 0:02:55]}  Be7 {[%clk 0:02:52]} 9. Qe4 {[%clk 0:02:54]}  Qc7 {[%clk 0:02:40]} 10. Bg5 {[%clk 0:02:51]}  Bxg5 {[%clk 0:02:39]} 11. hxg5 {[%clk 0:02:50]}  d6 {[%clk 0:02:29]} 12. exd6 {[%clk 0:02:45]}  Qxd6 {[%clk 0:02:30]} 13. Na3 {[%clk 0:02:44]}  Ba6 {[%clk 0:02:21]} 14. O-O-O {[%clk 0:02:42]}  Qd5 {[%clk 0:02:02]} 15. Qa4 {[%clk 0:02:30]}  Bb7 {[%clk 0:02:01]} 16. Nc4 {[%clk 0:02:29]}  a5 {[%clk 0:01:56]} 17. Nb6 {[%clk 0:02:28]}  Qf5 {[%clk 0:01:50]} 18. Nxa8 {[%clk 0:02:27]}  Bxa8 {[%clk 0:01:51]} 19. Qxa5 {[%clk 0:02:23]}  O-O {[%clk 0:01:52]} 20. Rxh5 {[%clk 0:02:16]}  Nf4 {[%clk 0:01:52]} 21. Rh2 {[%clk 0:02:10]}  f6 {[%clk 0:01:49]} 22. gxf6 {[%clk 0:02:03]}  Qxf6 {[%clk 0:01:50]} 23. Rdh1 {[%clk 0:01:57]}  Ng6 {[%clk 0:01:49]} 24. Qxc5 {[%clk 0:01:51]}  Rb8 {[%clk 0:01:48]} 25. Qd4 {[%clk 0:01:32]}  Qf5 {[%clk 0:01:40]} 26. Qe4 {[%clk 0:01:22]}  Qxe4 {[%clk 0:01:33]} 27. dxe4 {[%clk 0:01:21]}  c5 {[%clk 0:01:34]} 28. Ng5 {[%clk 0:01:18]}  Rb6 {[%clk 0:01:31]} 29. f3 {[%clk 0:01:17]}  e5 {[%clk 0:01:30]} 30. Rd1 {[%clk 0:01:17]}  Rb8 {[%clk 0:01:27]} 31. Rd6 {[%clk 0:01:14]}  Nf4 {[%clk 0:01:27]} 32. g3 {[%clk 0:01:13]} 1-0


[Site "https://www.chess.com"]

[Event "Titled Tuesday Blitz July 20 2021"]
[White "Chiu, Isaac"]
[Black "Babiy, Olga"]
[WhiteFideId "30900654"]
[BlackFideId "14117258"]
[WhiteElo "2117"]
[BlackElo "2230"]
[Result "0-1"]
[Round "06"]
[TimeControl "180+1"]
[Date "2021.07.21"]
[WhiteClock "0:00:01"]
[BlackClock "0:00:20"]

1. e4 {[%clk 0:03:00]}  d6 {[%clk 0:02:57]} 2. d4 {[%clk 0:03:00]}  Nf6 {[%clk 0:02:57]} 3. Nc3 {[%clk 0:02:59]}  e5 {[%clk 0:02:58]} 4. Nf3 {[%clk 0:02:59]}  Nbd7 {[%clk 0:02:57]} 5. Bc4 {[%clk 0:02:49]}  Be7 {[%clk 0:02:57]} 6. a4 {[%clk 0:02:42]}  O-O {[%clk 0:02:57]} 7. O-O {[%clk 0:02:41]}  a6 {[%clk 0:02:56]} 8. a5 {[%clk 0:02:40]}  exd4 {[%clk 0:02:53]} 9. Qxd4 {[%clk 0:02:37]}  Nc5 {[%clk 0:02:40]} 10. h3 {[%clk 0:02:37]}  Be6 {[%clk 0:02:36]} 11. Be3 {[%clk 0:02:36]}  Re8 {[%clk 0:02:33]} 12. Ng5 {[%clk 0:02:25]}  Bf8 {[%clk 0:02:26]} 13. b4 {[%clk 0:02:11]}  Bxc4 {[%clk 0:02:20]} 14. Qxc4 {[%clk 0:02:10]}  Ne6 {[%clk 0:02:20]} 15. Rad1 {[%clk 0:01:58]}  Nd7 {[%clk 0:02:08]} 16. Nf3 {[%clk 0:01:49]}  Qf6 {[%clk 0:01:58]} 17. Nd5 {[%clk 0:01:42]}  Qd8 {[%clk 0:01:58]} 18. Rd2 {[%clk 0:01:34]}  h6 {[%clk 0:01:53]} 19. Rfd1 {[%clk 0:01:31]}  Qc8 {[%clk 0:01:40]} 20. Qb3 {[%clk 0:00:58]}  g6 {[%clk 0:01:38]} 21. Nd4 {[%clk 0:00:44]}  Nxd4 {[%clk 0:01:25]} 22. Bxd4 {[%clk 0:00:44]}  Rxe4 {[%clk 0:01:23]} 23. Qc3 {[%clk 0:00:37]}  c6 {[%clk 0:01:17]} 24. f3 {[%clk 0:00:20]}  Rxd4 {[%clk 0:01:00]} 25. Rxd4 {[%clk 0:00:16]}  cxd5 {[%clk 0:01:00]} 26. Qd2 {[%clk 0:00:13]}  Nf6 {[%clk 0:00:56]} 27. g4 {[%clk 0:00:11]}  Bg7 {[%clk 0:00:52]} 28. h4 {[%clk 0:00:12]}  Qc6 {[%clk 0:00:31]} 29. Kg2 {[%clk 0:00:11]}  Rc8 {[%clk 0:00:30]} 30. g5 {[%clk 0:00:05]}  hxg5 {[%clk 0:00:28]} 31. hxg5 {[%clk 0:00:06]}  Nh5 {[%clk 0:00:28]} 32. Rg4 {[%clk 0:00:01]}  Be5 {[%clk 0:00:24]} 33. Kh3 {[%clk 0:00:01]}  Qxc2 {[%clk 0:00:20]} 0-1


[Site "https://www.chess.com"]

[Event "Titled Tuesday Blitz July 20 2021"]
[White "Dang, Hoang Son"]
[Black "Ivanov, Mike"]
[WhiteFideId "12402435"]
[BlackFideId "2613158"]
[WhiteElo "2248"]
[BlackElo "2197"]
[Result "0-1"]
[Round "06"]
[TimeControl "180+1"]
[Date "2021.07.21"]
[WhiteClock "0:00:05"]
[BlackClock "0:00:04"]

1. d4 {[%clk 0:02:58]}  Nf6 {[%clk 0:02:59]} 2. c4 {[%clk 0:02:58]}  e6 {[%clk 0:03:00]} 3. Nf3 {[%clk 0:02:58]}  c5 {[%clk 0:03:00]} 4. g3 {[%clk 0:02:59]}  cxd4 {[%clk 0:03:00]} 5. Nxd4 {[%clk 0:03:00]}  d5 {[%clk 0:03:01]} 6. Bg2 {[%clk 0:03:00]}  e5 {[%clk 0:03:00]} 7. Nc2 {[%clk 0:02:59]}  d4 {[%clk 0:02:56]} 8. O-O {[%clk 0:03:00]}  a5 {[%clk 0:02:32]} 9. e3 {[%clk 0:02:54]}  d3 {[%clk 0:02:14]} 10. Ne1 {[%clk 0:02:47]}  e4 {[%clk 0:01:58]} 11. Nc3 {[%clk 0:02:47]}  Bb4 {[%clk 0:01:23]} 12. Bd2 {[%clk 0:02:39]}  Bg4 {[%clk 0:01:03]} 13. f3 {[%clk 0:02:28]}  exf3 {[%clk 0:01:02]} 14. Nxf3 {[%clk 0:02:28]}  Nc6 {[%clk 0:00:59]} 15. Nb5 {[%clk 0:02:21]}  Bc5 {[%clk 0:00:54]} 16. Kh1 {[%clk 0:02:17]}  O-O {[%clk 0:00:54]} 17. Nc3 {[%clk 0:01:29]}  Qd7 {[%clk 0:00:46]} 18. Qa4 {[%clk 0:01:27]}  Bh3 {[%clk 0:00:43]} 19. Qb5 {[%clk 0:01:23]}  Bxg2+ {[%clk 0:00:43]} 20. Kxg2 {[%clk 0:01:23]}  Ba7 {[%clk 0:00:29]} 21. Nh4 {[%clk 0:01:15]}  Ng4 {[%clk 0:00:24]} 22. Nd5 {[%clk 0:01:01]}  Nce5 {[%clk 0:00:18]} 23. Qxd7 {[%clk 0:00:53]}  Nxd7 {[%clk 0:00:19]} 24. Nf5 {[%clk 0:00:48]}  a4 {[%clk 0:00:14]} 25. Rf4 {[%clk 0:00:45]}  Nge5 {[%clk 0:00:14]} 26. Raf1 {[%clk 0:00:45]}  f6 {[%clk 0:00:13]} 27. Nd6 {[%clk 0:00:41]}  Rab8 {[%clk 0:00:10]} 28. b4 {[%clk 0:00:34]}  axb3 {[%clk 0:00:10]} 29. axb3 {[%clk 0:00:34]}  Rfd8 {[%clk 0:00:11]} 30. Bb4 {[%clk 0:00:31]}  Bc5 {[%clk 0:00:07]} 31. Bxc5 {[%clk 0:00:22]}  Nxc5 {[%clk 0:00:08]} 32. Nf5 {[%clk 0:00:17]}  Nxb3 {[%clk 0:00:07]} 33. g4 {[%clk 0:00:16]}  d2 {[%clk 0:00:06]} 34. g5 {[%clk 0:00:16]}  Nd3 {[%clk 0:00:05]} 35. Rg4 {[%clk 0:00:13]}  Ne1+ {[%clk 0:00:04]} 36. Kh1 {[%clk 0:00:10]}  d1=Q {[%clk 0:00:04]} 37. Nfe7+ {[%clk 0:00:06]}  Kf7 {[%clk 0:00:04]} 38. g6+ {[%clk 0:00:05]}  hxg6 {[%clk 0:00:04]} 39. Rgf4 {[%clk 0:00:06]}  g5 {[%clk 0:00:04]} 40. Rf5 {[%clk 0:00:06]}  Qd3 {[%clk 0:00:03]} 41. Rxe1 {[%clk 0:00:05]}  Nd2 {[%clk 0:00:03]} 42. Kg1 {[%clk 0:00:06]}  Ne4 {[%clk 0:00:02]} 43. Rf4 {[%clk 0:00:06]}  Qd2 {[%clk 0:00:03]} 44. Ref1 {[%clk 0:00:06]}  gxf4 {[%clk 0:00:03]} 45. Nf5 {[%clk 0:00:06]}  fxe3 {[%clk 0:00:03]} 46. Ndxe3 {[%clk 0:00:06]}  Qe2 {[%clk 0:00:03]} 47. Rf4 {[%clk 0:00:05]}  Qe1+ {[%clk 0:00:03]} 48. Kg2 {[%clk 0:00:05]}  Qe2+ {[%clk 0:00:03]} 49. Kh3 {[%clk 0:00:05]}  Qe1 {[%clk 0:00:03]} 50. Rxe4 {[%clk 0:00:05]}  Qd1 {[%clk 0:00:02]} 51. Kg2 {[%clk 0:00:05]}  Rd2+ {[%clk 0:00:03]} 52. Kg3 {[%clk 0:00:06]}  Qe2 {[%clk 0:00:03]} 53. Nd6+ {[%clk 0:00:05]}  Kg6 {[%clk 0:00:03]} 54. Rg4+ {[%clk 0:00:05]}  Kh7 {[%clk 0:00:04]} 55. Nef5 {[%clk 0:00:06]}  Qf2+ {[%clk 0:00:04]} 56. Kh3 {[%clk 0:00:05]}  Qxh2# {[%clk 0:00:04]} 0-1


[Site "https://www.chess.com"]